Cogmind - Beta 12 @@@ ROGUE MODE // 2023.11.11 @ 17:31:21 Player: epb Result: Destroyed by S-10 Pest with Light Assault Rifle Performance ------------- Evolutions (1) 500 Regions Visited (3) 600 Robots Destroyed (19) 95 Value Destroyed (305) 305 Prototype IDs (2) 40 Alien Tech Used (0) 0 Bonus (0) 0 TOTAL SCORE: 1540 Bonus ------- None Cogmind --------- Core Integrity 0/400 Matter 205/300 Energy 280/280 System Corruption 4% Temperature Cool (6) Movement Treading (145) Location -9/Materials Parts ------- > --- POWER (1) -------- Cooled Ion Engine > --- PROPULSION (3) --- Advanced Treads Advanced Treads Advanced Treads > --- UTILITY (3) ------ Improved Terrain Scan Processor > --- WEAPON (2) ------- Enhanced Autogun Maul > --- INVENTORY (5) ---- Cooled Ion Engine EM Pulse Gun Grenade Launcher Peak State ------------ > --- POWER ------------ Cooled Ion Engine > --- PROPULSION ------- Advanced Treads Advanced Treads Advanced Treads > --- UTILITY ---------- Improved Terrain Scan Processor > --- WEAPON ----------- Enhanced Autogun Maul > --- INVENTORY -------- Ion Engine EM Pulse Gun Grenade Launcher [Rating: 21] Favorites ----------- Power Ion Engine Engine Ion Engine Propulsion Wheel Treads Advanced Treads Wheel Wheel Utility Improved Terrain Scan Processor Processor Improved Terrain Scan Processor Weapon Small Laser Energy Gun Small Laser Ballistic Gun Enhanced Autogun Launcher Grenade Launcher Impact Weapon Maul Piercing Weapon Makeshift Spear Build | -11 -10 -10 -9 ------- Run | Jun Mat Min Mat Slots Evolved 2 | . . . 2 Power . | . . . . Propulsion 1 | . . . 1 Utility 1 | . . . 1 Weapon . | . . . . Parts Attached 20 | 4 2 1 13 Power 3 | . 1 . 2 Engine 3 | . 1 . 2 Core . | . . . . Reactor . | . . . . Propulsion 10 | 2 . . 8 Treads 6 | . . . 6 Leg . | . . . . Wheel 4 | 2 . . 2 Hover . | . . . . Flight . | . . . . Utility 1 | . . . 1 Device . | . . . . Storage . | . . . . Processor 1 | . . . 1 Hackware . | . . . . Protection . | . . . . Artifact . | . . . . Weapon 6 | 2 1 1 2 Energy Gun 2 | 2 . . . Energy Cannon . | . . . . Ballistic Gun 1 | . . . 1 Ballistic Cannon . | . . . . Launcher 1 | . 1 . . Special Weapon . | . . . . Impact Weapon 1 | . . . 1 Slashing Weapon . | . . . . Piercing Weapon 1 | . . 1 . Special Melee Weapon . | . . . . Unidentified Prototypes 2 | . . . 2 Parts Lost 5 | . 1 . 4 Power . | . . . . Propulsion 3 | . 1 . 2 Utility . | . . . . Weapon 2 | . . . 2 Highest Loss Streak 3 | . 1 . 3 To Critical Strikes . | . . . . Average Slot Usage (%) 59 | . 61 57 59 Engine 11 | . 9 14 10 Treads 10 | . . . 17 Wheel 11 | . 23 14 7 Processor 1 | . . . 3 Energy Gun 9 | . 17 14 6 Ballistic Gun 1 | . . . 3 Launcher 3 | . 10 8 . Impact Weapon 4 | . . . 7 Piercing Weapon 3 | . . 5 3 Naked Turns . | . . . . Heaviest Build 14 | 3 9 9 14 Greatest Support 66 | 26 26 10 66 Greatest Overweight (x) . | . . . . Average Overweight (x) . | . . . . Largest Inventory Capacity 5 | 5 5 5 5 Average Capacity 5 | 5 5 5 5 Most Carried 5 | 2 4 4 5 Average Carried 2 | . 2 3 2 Final Capacity 5 | 5 5 5 5 Final Carried 4 | 2 3 4 3 Class Distribution -------------------- 100% | Mutant Dominant Class ---------------- Mutant | -10/Materials Mutant | -10/Mines Mutant | -9/Materials Resources | -11 -10 -10 -9 ----------- Run | Jun Mat Min Mat Matter Collected 373 | 192 . 113 68 Remotely . | . . . . Salvage Created 621 | . 45 258 318 Parts 34 | . 3 15 16 Haulers Intercepted 1 | . . . 1 Recyclers Shooed . | . . . . Parts Field Recycled . | . . . . Retrieved Matter . | . . . . Parts Self-Destructed . | . . . . Prevented . | . . . . Kills | -11 -10 -10 -9 ------- Run | Jun Mat Min Mat Combat Hostiles Destroyed 8 | . 1 . 7 Melee 2 | . . . 2 Guns 2 | . . . 2 AOE 1 | . 1 . . Classes Destroyed 9 | . 2 3 4 Worker 4 | . 2 1 1 Builder 1 | . . 1 . Tunneler 1 | . . 1 . Hauler 1 | . . . 1 Recycler 3 | . . 3 . Watcher 1 | . . . 1 Swarmer 3 | . . . 3 Grunt 2 | . 1 . 1 Sentry 3 | . . . 3 Best Kill Streak 6 | . 3 6 2 Combat Bots Only 2 | . 1 . 2 Max Kills in Single Turn 1 | . 1 1 1 Gunslinging . | . . . . Exploded 1 | . 1 . . Melee 1 | . . . 1 Uniques/NPCs Destroyed . | . . . . Combat | -11 -10 -10 -9 -------- Run | Jun Mat Min Mat Damage Taken 1633 | . 68 . 1565 Core 421 | . 18 . 403 Absorbed by Shields . | . . . . Core Remaining (%) 96 | 100 . 92 . Volleys Fired 18 | . 4 . 14 Largest 2 | . 2 . 1 Hottest 70 | . 70 . 40 Shots Fired 21 | . 8 . 13 Gun 17 | . 4 . 13 Cannon . | . . . . Launcher 4 | . 4 . . Special . | . . . . Kinetic 5 | . . . 5 Thermal 12 | . 4 . 8 Explosive 4 | . 4 . . Electromagnetic . | . . . . Robot Hit Streak 8 | . 5 . 8 Robot Miss Streak 3 | . 1 . 3 Penetration Max . | . . . . Secondary Targets . | . . . . Shots Hit Robots 38 | . 6 6 26 Core Hits 15 | . 7 3 5 Critical Kills 1 | . . . 1 Critical Parts Destroyed 2 | . . . 2 Critical Strikes 4 | . . . 4 Destroy 1 | . . . 1 Smash 2 | . . . 2 Impale 1 | . . . 1 Melee Attacks 44 | . . 7 37 Impact 23 | . . . 23 Slashing . | . . . . Piercing 21 | . . 7 14 Sneak Attacks 8 | . . 6 2 Combat Hostiles . | . . . . Follow-up Attacks . | . . . . Damage Inflicted 1381 | . 235 356 790 Guns 182 | . 43 . 139 Cannons . | . . . . Explosions 192 | . 192 . . Melee 1007 | . . 356 651 Ramming . | . . . . Kinetic 48 | . . . 48 Thermal 234 | . 143 . 91 Explosive 92 | . 92 . . Electromagnetic . | . . . . Impact 343 | . . . 343 Slashing . | . . . . Piercing 664 | . . 356 308 Highest Corruption 4 | . . . 4 Average Corruption 4 | . . . 4 Corruption Purged . | . . . . Corruption Blocked . | . . . . Effects 6 | . . . 6 Message Errors 1 | . . . 1 Matter Fused 3 | . . . 3 Parts Rejected 1 | . . . 1 Weapon Failures 1 | . . . 1 Overload Shots . | . . . . Overflow Damage 266 | . 2 82 182 Projectiles . | . . . . Explosions 2 | . 2 . . Melee 264 | . . 82 182 Knockbacks . | . . . . Impact . | . . . . Kinetic . | . . . . Secondary . | . . . . Self-Inflicted Damage 68 | . 68 . . Shots 2 | . 2 . . Rammed . | . . . . Targets Rammed . | . . . . Kicked . | . . . . Crushed . | . . . . Highest Temperature 27 | . 27 . 9 Average Temperature 9 | . 13 . 5 Received Heat Transfer 366 | . . . 366 Siege Activations . | . . . . Robots Corrupted . | . . . . Combat Hostiles . | . . . . Parts Fried 7 | . . . 7 Impact Corruptions 8 | . . . 8 Robots Melted . | . . . . Combat Hostiles . | . . . . Parts Melted . | . . . . Heat Transferred 400 | . 200 . 200 Parts Sabotaged . | . . . . Parts Stolen . | . . . . Parts Stripped . | . . . . Power Chain Reactions . | . . . . Missiles Intercepted . | . . . . Alert | -11 -10 -10 -9 ------- Run | Jun Mat Min Mat Peak Influence 172 | . 134 83 172 Initial 52 | . . 52 31 Average 67 | . 54 56 87 Maximum Alert Level . | . . . . Low Security (%) 100 | 100 100 100 100 Level 1 . | . . . . Level 2 . | . . . . Level 3 . | . . . . Level 4 . | . . . . Level 5 . | . . . . High Security . | . . . . Max Security . | . . . . Squads Dispatched 3 | . 2 . 1 Investigation 2 | . 2 . . Extermination . | . . . . Reinforcement 1 | . . . 1 Assault . | . . . . Garrison . | . . . . Intercept . | . . . . Searches Triggered . | . . . . Construction Impeded . | . . . . Haulers Reinforced . | . . . . Active Scanning Responses . | . . . . Cargo Convoy Interrupts . | . . . . Stealth | -11 -10 -10 -9 --------- Run | Jun Mat Min Mat Distress Signals 2 | . . . 2 Communications Jammed . | . . . . Distress Signals . | . . . . Times Spotted 19 | . 3 . 16 Peak Tracking Total 8 | . 2 . 8 Tactical Retreats . | . . . . Traps | -11 -10 -10 -9 ------- Run | Jun Mat Min Mat Traps Triggered . | . . . . Indirectly . | . . . . Trap Hack Attempts . | . . . . Triggered . | . . . . Disarmed 6 | . 6 . . Reprogrammed . | . . . . Reused . | . . . . Traps Extracted . | . . . . Installed . | . . . . Triggered . | . . . . Machines | -11 -10 -10 -9 ---------- Run | Jun Mat Min Mat Machines Disabled 2 | . 2 . . Max in Single Turn 2 | . 2 . . Machines Repaired . | . . . . Machines Sabotaged . | . . . . Overloaded Fab Kills . | . . . . Hacking | -11 -10 -10 -9 --------- Run | Jun Mat Min Mat Machines Accessed 3 | . 3 . . Terminals 3 | . 3 . . Fabricators . | . . . . Repair Stations . | . . . . Recycling Units . | . . . . Scanalyzers . | . . . . Garrison Access . | . . . . Total Hacks 11 | . 11 . . Successful 8 | . 8 . . Failed 3 | . 3 . . Catastrophic . | . . . . Database Lockouts . | . . . . Manual . | . . . . Terminals 11 | . 11 . . Fabricators . | . . . . Repair Stations . | . . . . Recycling Units . | . . . . Scanalyzers . | . . . . Garrison Access . | . . . . Terminal Hacks 8 | . 8 . . Record 2 | . 2 . . Robot Analysis 1 | . 1 . . Emergency Access Points 2 | . 2 . . Locate Traps 1 | . 1 . . Disarm Traps 2 | . 2 . . Fabricator Hacks . | . . . . Repair Station Hacks . | . . . . Recycling Unit Hacks . | . . . . Scanalyzer . | . . . . Garrison Access Hacks . | . . . . Unauthorized Hacks . | . . . . Terminals . | . . . . Fabricators . | . . . . Repair Stations . | . . . . Recycling Units . | . . . . Scanalyzers . | . . . . Garrison Access . | . . . . Data Cores Recovered . | . . . . Used . | . . . . Hacking Detections 3 | . 3 . . Full Trace Events 2 | . 2 . . Feedback Events . | . . . . Feedback Blocked . | . . . . Robot Schematics Acquired . | . . . . Robots Built . | . . . . Authchips . | . . . . Time . | . . . . Total Robot Build Rating . | . . . . Part Schematics Acquired . | . . . . Parts Built . | . . . . Authchips . | . . . . Time . | . . . . Total Part Build Rating . | . . . . Parts Repaired . | . . . . Time . | . . . . Parts Recycled . | . . . . Recycled Matter . | . . . . Retrieved Matter . | . . . . Retrieved Components . | . . . . Parts Scanalyzed . | . . . . Part Schematics Acquired . | . . . . Parts Damaged . | . . . . Bothacking | -11 -10 -10 -9 ------------ Run | Jun Mat Min Mat Used RIF Installer . | . . . . Robots Hacked . | . . . . Non-combat . | . . . . Combat . | . . . . Robot Hacks Applied . | . . . . Relay Couplers Released . | . . . . Fabnet Peak Effective % . | . . . . Robots Rewired . | . . . . Allies Hacked . | . . . . Hacks Repelled . | . . . . Allies | -11 -10 -10 -9 -------- Run | Jun Mat Min Mat Total Allies . | . . . . Largest Group . | . . . . Highest-Rated Group . | . . . . Highest-Rated Ally . | . . . . Total Orders . | . . . . Ally Attacks . | . . . . Total Damage . | . . . . Kills . | . . . . Allies Corrupted . | . . . . Allies Melted . | . . . . Intel | -11 -10 -10 -9 ------- Run | Jun Mat Min Mat Robot Analysis Total 1 | . 1 . . Derelict Logs Recovered . | . . . . Drone Launches . | . . . . Drone Recoveries . | . . . . Exploration | -11 -10 -10 -9 ------------- Run | Jun Mat Min Mat Turns Passed 800 | 82 92 191 435 Spaces Moved 613 | 63 89 219 242 Core 10 | 10 . . . Treads 122 | . . . 122 Legs . | . . . . Wheels 481 | 53 89 219 120 Hover . | . . . . Flight . | . . . . Fastest Speed 50 | 50 80 80 80 Average Speed 96 | 85 85 80 117 Slowest Speed 160 | 100 90 80 160 Overloaded Moves . | . . . . Propulsion Burnouts . | . . . . Robots Hopped . | . . . . Cave-ins Triggered 1 | . . . 1 Exploration Rate (%) 25 | 3 23 50 24 Regions Visited 3 Branch Regions 1 Pre-discovered Areas . | . . . . Known Exits Taken . | . . . . Unknown Exits Taken 3 | 1 1 1 . Scrap Searched 1 | . . 1 . Spaces Dug 10 | . . 1 9 Terrain Destroyed 37 | . 27 1 9 Melee 10 | . . 1 9 Projectile . | . . . . AOE 27 | . 27 . . Terrain Rammed . | . . . . Walls Destroyed . | . . . . Machines Disabled . | . . . . Actions | -11 -10 -10 -9 --------- Run | Jun Mat Min Mat Total 734 | 90 96 227 321 Wait 19 | 19 . . . Move 610 | 62 88 218 242 Hop . | . . . . Pick Up 19 | 5 2 1 11 Fast Attach 1 | 1 . . . Attach 15 | 3 1 . 11 Detach . | . . . . Swap 4 | . 1 1 2 Drop 4 | . . . 4 Fire 18 | . 4 . 14 Melee 44 | . . 7 37 Ram . | . . . . Kick . | . . . . Crush . | . . . . Escape Stasis . | . . . . Rewire . | . . . . Trap . | . . . . Miscellaneous . | . . . . Route ------- -11/Junkyard -10/Materials -10/Mines -9/Materials History --------- Turn | Location | Event 38 | -11/Junkyard | Discovered new exit (range 16) 83 | -11/Junkyard | Entered Materials 142 | -10/Materials | Discovered new exit (range 14) 175 | -10/Materials | Entered Mines 261 | -10/Mines | Assembled infested the area 291 | -10/Mines | A weapon hastily lodged in a ceiling crevice suddenly fell to the ground 296 | -10/Mines | Met 8R-AWN 314 | -10/Mines | Build established: Mutant 350 | -10/Mines | Discovered new exit (range 7) 366 | -10/Mines | Entered Materials 366 | -9/Materials | Evolved 2 slots: Propulsion x1, Utility x1 507 | -9/Materials | Core integrity fell below 50% 526 | -9/Materials | Lost 3 parts (2n1w) 621 | -9/Materials | Crushed by falling debris 749 | -9/Materials | Core integrity fell below 20% 801 | -9/Materials | Destroyed by S-10 Pest with Light Assault Rifle Last Messages --------------- R-06 Scavenger collects Ion Engine. R-06 Scavenger collects Prototype Ballistic Gun. W-16 Scout sends out distress signal. S-10 Pest destroyed. System corrupted: Matter fused (-7). S-10 Pest destroyed. System corrupted: Matter fused (-6). Destroyed Lgt. Ion Engine. Destroyed Flight Unit. S-10 Pest system corrupted by crushing effect. S-10 Pest system terminally corrupted. Flight Unit fried. S-10 Pest suffers critical hit (Burn). S-10 Pest destroyed. Destroyed Flight Unit. S-10 Pest system corrupted by crushing effect. S-10 Pest system terminally corrupted. Critical hit (Burn: +37). K-01 Serf collects debris. R-06 Scavenger collects Flight Unit. Map ----- +----------------------------------------------------+ | " | #??????????????????????????????????????????? | | " #??????????????????????????????????????????? | | #??????????????????????????????????????????? | | #??????????????????????????????????????????? | | " """ #??????????????????????????????????????????? | | " """ #??????????????????????????????????????????? | | " """ #??????????????????????????????????????????? | | #??????????????????????????????????????????? | | #######??????????????????????????????????????????? | | ?????????????????????????????????????????????????? | | ??????????????????????????? ? ????????????????? | | ??????????????????????????? #???????????????? | | ??????????????????????????? #???????????????? | | ??????????????????????????? #???????????????? | | ??#???????????????????????? ? #???????????????? | | ? #???????????????????????? ? #???????????????? | | ? #???????????????????????? ? #???????????????? | | " #?????????????????#######g## #???????????????? | | " #?????????????????# # =+???????????????? | | " #?????????????????# """ # =%#???????????????? | | #?????????????????# """ # #???????????????? | | " ########??????????# """ # % #???????????????? | | " # #?????????## #*[=#???????????????? | | " #""" #?????????# g #[%=#???????????????? | | #""" #??????????# % # r#???????????????? | | #""" #??????????# s@ k/ #???????????????? | | #""" ###????????# * [%%# #???????????????? | | +## # ######???########## #???????????????? | | ##+##"#### ############## #### #????????? | | =* #????????? | | * +????????? | | ##+##"#### = #????????? | | ## #?## = ############+##### #????????? | | ## #??# %[ ## #??? ????? #????????? | | ## "" #### ## #???""?????? #????????? | | ## "T + # #???""???????#????????? | | ## "" #### + #???""????????????????? | | ### =#??# ## #?????????????????????? | | ??########??# = ## """ #?????????????????????? | | ????????????#[ !!= ## """ #?????????????????????? | | ????????????#[[ != #? """ #?????????????????????? | | ????????????########?#######?????????????????????? | | ?????????????????????????????????????????????????? | | | | | | | | | | | | | | | +----------------------------------------------------+ Best States ------------- Heat Dissipation 28 Energy Generation 14 Energy Capacity 280 Matter Stores 300 Matter Capacity 300 Sight Range 16 Terrain Scan Density 110 Evasion (%) 44 Recoil Reduction 3 Item Schematics ----------------- None Robot Schematics ------------------ None Fabricated ------------ Nothing Alien Tech Used ----------------- None Achievements -------------- Let's See Who's Tougher Part-time Excavator Challenges ------------ None Game ------ Seed CargoFlightAutocannon Manual? 0 Play Time 00:19:22 Cumulative 7.2 hours Start 2023.11.11 @ 15:53:33 End 2023.11.11 @ 17:31:21 Sessions 6 Manual Loads 0 Difficulty Rogue Special Mode None Game No. 20 Rogue 20 Adventurer 0 Explorer 0 Win Type - Total 0 Types 0/0/0/0/0/0/0/0/0 Lore% 6 Gallery% 14 Achievement% 12 Wizard Run 0 Options --------- ASCII 0 Keyboard 0 Movement Arrows Keybinds 0 Fullscreen 2 Font 14/SmallcapsGlow Map View 72x54 Tactical HUD 0 Map Filters NONE Filters NONE Steam X RUN: 10ea7b8b-36aa-492f-940e-a356969824f5